fUSD/lending_fUSD_20250426
["ID","MTS","AMOUNT","RATE_DAILY","PERIOD"]
[359052018,1745676642831,-462.31,0.00019977,2]
[359052021,1745676642841,-507.32,0.00019977,2]
[359052023,1745676642850,-200.0,0.00019977,2]
[359052026,1745676642862,-693.18,0.00019977,2]
[359052028,1745676642872,-400.0,0.00019977,2]
[359052030,1745676642882,-400.0,0.00019977,2]
[359052032,1745676642891,-493.67150404,0.00019977,2]
[359052034,1745676642900,-493.77,0.00019977,2]
[359052036,1745676642910,-511.03,0.00019977,2]
[359052039,1745676642920,-200.0,0.00019977,2]
[359052040,1745676642930,-733.56,0.00019977,2]
[359052043,1745676642941,-400.0,0.00019977,2]
[359052045,1745676642955,-572.18,0.00019977,2]
[359052047,1745676642964,-770.65,0.00019977,2]
[359052049,1745676642974,-400.0,0.00019977,2]
[359052051,1745676642983,-332.76152491,0.00019977,2]
[359052053,1745676642993,-400.0,0.00019977,2]
[359052054,1745676643004,-400.0,0.00019977,2]
[359052057,1745676643014,-400.0,0.00019977,2]
[359052059,1745676643025,-400.0,0.00019977,2]
[359052061,1745676643035,-400.0,0.00019977,2]
[359052063,1745676643045,-400.0,0.00019977,2]
[359052065,1745676643054,-494.76,0.00019977,2]
[359052067,1745676643064,-400.0,0.00019977,2]
[359052069,1745676643074,-580.88,0.00019977,2]
[359052070,1745676643083,-575.58,0.00019977,2]
[359052072,1745676643093,-453.06,0.00019977,2]
[359052074,1745676643103,-400.0,0.00019977,2]
[359052076,1745676643113,-1206.77,0.00019977,2]
[359052078,1745676643123,-400.0,0.00019977,2]
[359052080,1745676643132,-400.0,0.00019977,2]
[359052082,1745676643142,-400.0,0.00019977,2]
[359052084,1745676643151,-400.0,0.00019977,2]
[359052085,1745676643161,-400.0,0.00019977,2]
[359052087,1745676643171,-400.0,0.00019977,2]
[359052089,1745676643180,-400.0,0.00019977,2]
[359052091,1745676643190,-428.42492568,0.00019977,2]
[359052093,1745676643199,-400.0,0.00019977,2]
[359052095,1745676643209,-400.0,0.00019977,2]
[359052097,1745676643218,-1079.81,0.00019977,2]
[359052098,1745676643228,-984.36,0.00019977,2]
[359052100,1745676643237,-300.0,0.00019977,2]
[359052102,1745676643246,-400.0,0.00019977,2]
[359052104,1745676643256,-400.0,0.00019977,2]
[359052106,1745676643266,-400.0,0.00019977,2]
[359052108,1745676643276,-400.0,0.00019977,2]
[359052109,1745676643285,-400.0,0.00019977,2]
[359052111,1745676643295,-415.58,0.00019977,2]
[359052113,1745676643304,-931.82,0.00019977,2]
[359052115,1745676643313,-687.45,0.00019977,2]
[359052117,1745676643323,-400.0,0.00019977,2]
[359052119,1745676643332,-589.27,0.00019977,2]
[359052120,1745676643342,-834.58,0.00019977,2]
[359052122,1745676643351,-386.68122914,0.00019977,2]
[359052124,1745676643361,-400.0,0.00019977,2]
[359052126,1745676643371,-337.07245748,0.00019977,2]
[359052128,1745676643380,-400.0,0.00019977,2]
[359052130,1745676643390,-400.0,0.00019977,2]
[359052132,1745676643399,-577.22,0.00019977,2]
[359052133,1745676643408,-400.0,0.00019977,2]
[359052135,1745676643417,-957.75,0.00019977,2]
[359052137,1745676643427,-552.6,0.00019977,2]
[359052139,1745676643436,-400.0,0.00019977,2]
[359052141,1745676643446,-440.34,0.00019977,2]
[359052143,1745676643455,-720.77,0.00019977,2]
[359052144,1745676643465,-400.0,0.00019977,2]
[359052146,1745676643474,-400.0,0.00019977,2]
[359052148,1745676643484,-644.13,0.00019977,2]
[359052150,1745676643494,-252.92410578,0.00019977,2]
[359052152,1745676643504,-500.0,0.00019977,2]
[359052154,1745676643513,-400.0,0.00019977,2]
[359052155,1745676643523,-1157.12,0.00019977,2]
[359052158,1745676643532,-486.67,0.00019977,2]
[359052161,1745676643541,-400.0,0.00019977,2]
[359052164,1745676643551,-400.0,0.00019977,2]
[359052167,1745676643560,-449.54,0.00019977,2]
[359052169,1745676643569,-400.0,0.00019977,2]
[359052171,1745676643579,-400.0,0.00019977,2]
[359052172,1745676643588,-400.0,0.00019977,2]
[359052174,1745676643597,-400.0,0.00019977,2]
[359052176,1745676643607,-400.0,0.00019977,2]
[359052178,1745676643617,-400.0,0.00019977,2]
[359052195,1745676643880,-698.61,0.00019977,2]
[359052196,1745676643891,-500.0,0.00019977,2]
[359052197,1745676643902,-400.0,0.00019977,2]
[359052198,1745676643914,-561.4,0.00019977,2]
[359052199,1745676643924,-625.36770935,0.00019977,2]
[359052200,1745676643935,-400.0,0.00019977,2]
[359052201,1745676643946,-400.0,0.00019977,2]
[359052202,1745676643957,-461.13,0.00019977,2]
[359052203,1745676643966,-400.0,0.00019977,2]
[359052204,1745676643975,-550.33,0.00019977,2]
[359052205,1745676643985,-400.0,0.00019977,2]
[359052206,1745676643995,-400.0,0.00019977,2]
[359052208,1745676644004,-400.0,0.00019977,2]
[359052209,1745676644014,-594.82,0.00019977,2]
[359052211,1745676644024,-400.0,0.00019977,2]
[359052213,1745676644034,-98884.21,0.00019977,2]
[359052215,1745676644043,-308.29454361,0.00019977,2]
[359052217,1745676644052,-732.7,0.00019977,2]
[359052219,1745676644062,-400.0,0.00019977,2]
[359052221,1745676644071,-400.0,0.00019977,2]
[359052223,1745676644081,-3704.22,0.00019977,2]
[359052225,1745676644090,-521.04,0.00019977,2]
[359052227,1745676644100,-11845.74,0.00019977,2]
[359052229,1745676644109,-400.0,0.00019977,2]
[359052231,1745676644119,-400.0,0.00019977,2]
[359052233,1745676644128,-400.0,0.00019977,2]
[359052235,1745676644138,-6099.53,0.00019977,2]
[359052237,1745676644147,-450.93,0.00019977,2]
[359052239,1745676644156,-669.66,0.00019977,2]
[359052241,1745676644166,-400.0,0.00019977,2]
[359052243,1745676644175,-400.0,0.00019977,2]
[359052245,1745676644184,-425.93,0.00019977,2]
[359052247,1745676644194,-529.46,0.00019977,2]
[359052249,1745676644203,-2448.04,0.00019977,2]
[359052251,1745676644212,-400.0,0.00019977,2]
[359052253,1745676644222,-400.0,0.00019977,2]
[359052255,1745676644231,-400.0,0.00019977,2]
[359052257,1745676644241,-687.86,0.00019977,2]
[359052259,1745676644251,-400.0,0.00019977,2]
[359052261,1745676644261,-400.0,0.00019977,2]
[359052263,1745676644270,-542.46,0.00019977,2]
[359052265,1745676644280,-736.64,0.00019977,2]
[359052267,1745676644290,-400.0,0.00019977,2]
[359052269,1745676644299,-400.0,0.00019977,2]
[359052271,1745676644309,-627.01,0.00019977,2]
[359052273,1745676644320,-400.0,0.00019977,2]
[359052275,1745676644330,-529.63,0.00019977,2]
[359052277,1745676644339,-568.35,0.00019977,2]
[359052279,1745676644350,-400.0,0.00019977,2]
[359052281,1745676644359,-400.0,0.00019977,2]
[359052283,1745676644369,-4896.31,0.00019977,2]
[359052285,1745676644378,-400.0,0.00019977,2]
[359052287,1745676644388,-400.0,0.00019977,2]
[359052289,1745676644399,-674.18,0.00019977,2]
[359052291,1745676644408,-824.88,0.00019977,2]
[359052293,1745676644418,-400.0,0.00019977,2]
[359052294,1745676644427,-400.0,0.00019977,2]
[359052295,1745676644436,-701.28,0.00019977,2]
[359052296,1745676644446,-400.0,0.00019977,2]
[359052297,1745676644455,-601.56,0.00019977,2]
[359052298,1745676644465,-400.0,0.00019977,2]
[359052299,1745676644475,-222145.63,0.00019977,2]
[359052300,1745676644485,-400.0,0.00019977,2]
[359052301,1745676644494,-595.79,0.00019977,2]
[359052302,1745676644504,-511.02,0.00019977,2]
[359052303,1745676644513,-400.0,0.00019977,2]
[359052304,1745676644523,-400.0,0.00019977,2]
[359052305,1745676644532,-400.0,0.00019977,2]
[359052307,1745676644541,-588.46,0.00019977,2]
[359052309,1745676644551,-400.0,0.00019977,2]
[359052311,1745676644560,-400.0,0.00019977,2]
[359052312,1745676644570,-500.0,0.00019977,2]
[359052314,1745676644579,-678.06,0.00019977,2]
[359052317,1745676644589,-500.0,0.00019977,2]
[359052318,1745676644599,-744.74,0.00019977,2]
[359052319,1745676644608,-2502.0,0.00019977,2]
[359052320,1745676644619,-400.0,0.00019977,2]
[359052321,1745676644628,-400.0,0.00019977,2]
[359052322,1745676644638,-500.0,0.00019977,2]
[359052323,1745676644648,-652.4,0.00019977,2]
[359052325,1745676644658,-150.0,0.00019977,2]
[359052327,1745676644667,-400.0,0.00019977,2]
[359052329,1745676644677,-150.0,0.00019977,2]
[359052330,1745676644687,-400.0,0.00019977,2]
[359052332,1745676644696,-500.0,0.00019977,2]
[359052334,1745676644705,-400.0,0.00019977,2]
[359052336,1745676644716,-500.0,0.00019977,2]
[359052337,1745676644725,-1160.42,0.00019977,2]
[359052338,1745676644735,-534.04,0.00019977,2]
[359052339,1745676644745,-400.0,0.00019977,2]
[359052340,1745676644754,-659.28,0.00019977,2]
[359052341,1745676644763,-489.87,0.00019977,2]
[359052343,1745676644773,-400.0,0.00019977,2]
[359052345,1745676644783,-1091.65,0.00019977,2]
[359052347,1745676644792,-400.0,0.00019977,2]
[359052349,1745676644802,-400.0,0.00019977,2]
[359052351,1745676644812,-150.0,0.00019977,2]
[359052353,1745676644821,-400.0,0.00019977,2]
[359052355,1745676644831,-500.0,0.00019977,2]
[359052357,1745676644845,-500.0,0.00019977,2]
[359052359,1745676644856,-826.45,0.00019977,2]
[359052361,1745676644866,-641.44,0.00019977,2]
[359052363,1745676644876,-708.02,0.00019977,2]
[359052365,1745676644886,-401.64,0.00019977,2]
[359052367,1745676644896,-400.0,0.00019977,2]
[359052369,1745676644905,-300.0,0.00019977,2]
[359052371,1745676644916,-488.55,0.00019977,2]
[359052373,1745676644925,-400.0,0.00019977,2]
[359052375,1745676644935,-1143.17,0.00019977,2]
[359052377,1745676644945,-818.18,0.00019977,2]
[359052379,1745676644955,-400.0,0.00019977,2]
[359052381,1745676644965,-437.98246931,0.00019977,2]
[359052383,1745676644974,-722.37,0.00019977,2]
[359052385,1745676644984,-687.7,0.00019977,2]
[359052387,1745676644994,-1168.05,0.00019977,2]
[359052389,1745676645005,-400.0,0.00019977,2]
[359052391,1745676645015,-496.98,0.00019977,2]
[359052393,1745676645024,-443.62640003,0.00019977,2]
[359052395,1745676645034,-400.0,0.00019977,2]
[359052397,1745676645043,-1539.36,0.00019977,2]
[359052399,1745676645053,-483.63,0.00019977,2]
[359052401,1745676645062,-400.0,0.00019977,2]
[359052403,1745676645073,-400.0,0.00019977,2]
[359052405,1745676645083,-1047.16,0.00019977,2]
[359052407,1745676645093,-400.0,0.00019977,2]
[359052409,1745676645103,-500.0,0.00019977,2]
[359052411,1745676645115,-400.0,0.00019977,2]
[359052413,1745676645125,-415.12,0.00019977,2]
[359052415,1745676645135,-767.41,0.00019977,2]
[359052418,1745676645145,-400.0,0.00019977,2]
[359052420,1745676645154,-400.0,0.00019977,2]
[359052421,1745676645164,-1178.4,0.00019977,2]
[359052424,1745676645174,-1886.82,0.00019977,2]
[359052426,1745676645184,-1134.09,0.00019977,2]
[359052428,1745676645194,-200.0,0.00019977,2]
[359052430,1745676645203,-400.0,0.00019977,2]
[359052432,1745676645213,-672.67,0.00019977,2]
[359052433,1745676645223,-400.0,0.00019977,2]
[359052435,1745676645233,-442.16,0.00019977,2]
[359052437,1745676645243,-478.14,0.00019977,2]
[359052439,1745676645253,-400.0,0.00019977,2]
[359052441,1745676645264,-3196.14,0.00019977,2]
[359052444,1745676645274,-400.0,0.00019977,2]
[359052445,1745676645284,-966.86,0.00019977,2]
[359052447,1745676645294,-851.1,0.00019977,2]
[359052450,1745676645303,-400.0,0.00019977,2]
[359052452,1745676645314,-400.0,0.00019977,2]
[359052454,1745676645324,-400.0,0.00019977,2]
[359052456,1745676645335,-400.0,0.00019977,2]
[359052458,1745676645344,-735.56,0.00019977,2]
[359052460,1745676645354,-591.56,0.00019977,2]
[359052462,1745676645363,-461.97,0.00019977,2]
[359052464,1745676645373,-400.0,0.00019977,2]
[359052466,1745676645383,-400.0,0.00019977,2]
[359052468,1745676645393,-740.67,0.00019977,2]
[359052470,1745676645402,-1138.62,0.00019977,2]
[359052472,1745676645412,-429.77,0.00019977,2]
[359052473,1745676645422,-550.18,0.00019977,2]
[359052475,1745676645431,-400.0,0.00019977,2]
[359052478,1745676645442,-400.0,0.00019977,2]
[359052479,1745676645452,-400.0,0.00019977,2]
[359052481,1745676645461,-400.0,0.00019977,2]
[359052484,1745676645471,-825.14,0.00019977,2]
[359052486,1745676645482,-400.0,0.00019977,2]
[359052487,1745676645491,-810.74,0.00019978,2]
[359052489,1745676645500,-500.0,0.00019978,2]
[359052491,1745676645509,-400.0,0.00019978,2]
[359052493,1745676645519,-400.0,0.00019978,2]
[359052495,1745676645528,-547.78,0.00019978,2]
[359052497,1745676645538,-400.0,0.00019978,2]
[359052500,1745676645548,-400.0,0.00019978,2]
[359052502,1745676645557,-400.0,0.00019978,2]
[359052504,1745676645567,-200.0,0.00019978,2]
[359052506,1745676645577,-400.0,0.00019978,2]
[359052508,1745676645586,-792.48,0.00019978,2]
[359052510,1745676645596,-400.0,0.00019978,2]
[359052512,1745676645607,-400.0,0.00019978,2]
[359052513,1745676645617,-400.0,0.00019978,2]
[359052515,1745676645626,-400.0,0.00019978,2]
[359052517,1745676645635,-400.0,0.00019978,2]
[359052519,1745676645645,-400.0,0.00019978,2]
[359052521,1745676645655,-400.0,0.00019978,2]
[359052523,1745676645664,-903.39,0.00019978,2]
[359052525,1745676645674,-400.0,0.00019978,2]
[359052526,1745676645683,-400.0,0.00019978,2]
[359052527,1745676645692,-200.0,0.00019978,2]
[359052528,1745676645703,-205.0925015,0.00019978,2]
[359052529,1745676645712,-400.0,0.00019978,2]
[359052530,1745676645722,-200.0,0.00019978,2]
[359052531,1745676645731,-400.0,0.00019978,2]
[359052532,1745676645742,-477.64,0.00019978,2]
[359052533,1745676645752,-468.24,0.00019978,2]
[359052534,1745676645762,-400.0,0.00019978,2]
[359052535,1745676645772,-405.33,0.00019978,2]
[359052536,1745676645783,-400.0,0.00019978,2]
[359052537,1745676645794,-651.17,0.00019978,2]
[359052538,1745676645804,-478.22007427,0.00019978,2]
[359052539,1745676645814,-400.0,0.00019978,2]
[359052540,1745676645823,-505.12,0.00019978,2]
[359052541,1745676645832,-200.0,0.00019978,2]
[359052542,1745676645845,-400.0,0.00019978,2]
[359052543,1745676645857,-769.07,0.00019978,2]
[359052544,1745676645867,-202.16757168,0.00019978,2]
[359052545,1745676645876,-400.0,0.00019978,2]
[359052546,1745676645885,-400.0,0.00019978,2]
[359052547,1745676645895,-400.0,0.00019978,2]
[359052548,1745676645904,-471.62130063,0.00019978,2]
[359052549,1745676645915,-738.87,0.00019978,2]
[359052550,1745676645924,-253.30116405,0.00019978,2]
[359052551,1745676645934,-400.0,0.00019978,2]
[359052552,1745676645943,-400.0,0.00019978,2]
[359052554,1745676645952,-400.0,0.00019978,2]
[359052555,1745676645962,-400.0,0.00019978,2]
[359052556,1745676645971,-478.65,0.00019978,2]
[359052557,1745676645980,-401.21,0.00019978,2]
[359052558,1745676645990,-858.85,0.00019978,2]
[359052559,1745676645999,-400.0,0.00019978,2]
[359052560,1745676646008,-400.0,0.00019978,2]
[359052561,1745676646018,-400.0,0.00019978,2]
[359052562,1745676646028,-400.0,0.00019978,2]
[359052563,1745676646037,-400.0,0.00019978,2]
[359052564,1745676646047,-400.0,0.00019978,2]
[359052565,1745676646056,-400.0,0.00019978,2]
[359052566,1745676646066,-513.63,0.00019978,2]
[359052567,1745676646076,-400.0,0.00019978,2]
[359052568,1745676646085,-400.0,0.00019978,2]
[359052569,1745676646094,-709.82,0.00019978,2]
[359052570,1745676646106,-400.0,0.00019978,2]
[359052571,1745676646115,-400.0,0.00019978,2]
[359052572,1745676646125,-400.0,0.00019978,2]
[359052573,1745676646135,-400.0,0.00019978,2]
[359052574,1745676646144,-400.0,0.00019978,2]
[359052575,1745676646154,-400.0,0.00019978,2]
[359052576,1745676646164,-400.0,0.00019978,2]
[359052577,1745676646174,-400.0,0.00019978,2]
[359052578,1745676646185,-400.0,0.00019978,2]
[359052579,1745676646196,-179.29675452,0.00019978,2]
[359052580,1745676646206,-400.0,0.00019978,2]
[359052581,1745676646215,-400.0,0.00019978,2]
[359052582,1745676646224,-511.62,0.00019978,2]
[359052583,1745676646234,-400.0,0.00019978,2]
[359052584,1745676646243,-400.0,0.00019978,2]
[359052585,1745676646253,-400.0,0.00019978,2]
[359052586,1745676646265,-466.68,0.00019978,2]
[359052587,1745676646275,-156.99553438,0.00019978,2]
[359052588,1745676646284,-400.0,0.00019978,2]
[359052589,1745676646294,-400.0,0.00019978,2]
[359052590,1745676646304,-617.34,0.00019978,2]
[359052591,1745676646316,-400.0,0.00019978,2]
[359052592,1745676646325,-400.0,0.00019978,2]
[359052593,1745676646335,-400.0,0.00019978,2]
[359052594,1745676646344,-400.0,0.00019978,2]
[359052595,1745676646359,-261.81966742,0.00019978,2]
[359052596,1745676646369,-400.0,0.00019978,2]
[359052597,1745676646378,-202.72115054,0.00019978,2]
[359052598,1745676646388,-400.0,0.00019978,2]
[359052599,1745676646398,-549.3,0.00019978,2]
[359052600,1745676646408,-400.0,0.00019978,2]
[359052601,1745676646417,-400.0,0.00019978,2]
[359052602,1745676646426,-632.22,0.00019978,2]
[359052603,1745676646435,-400.0,0.00019978,2]
[359052604,1745676646452,-711.63,0.00019978,2]
[359052605,1745676646461,-400.0,0.00019978,2]
[359052606,1745676646471,-400.0,0.00019978,2]
[359052607,1745676646482,-400.0,0.00019978,2]
[359052608,1745676646491,-709.72,0.00019978,2]
[359052609,1745676646501,-300.0,0.00019978,2]
[359052610,1745676646511,-400.0,0.00019978,2]
[359052611,1745676646522,-400.0,0.00019978,2]
[359052612,1745676646534,-406.15,0.00019978,2]
[359052613,1745676646544,-500.0,0.00019978,2]
[359052614,1745676646554,-716.66,0.00019978,2]
[359052615,1745676646564,-1834.14,0.00019978,2]
[359052616,1745676646573,-448.37,0.00019978,2]
[359052617,1745676646583,-400.0,0.00019978,2]
[359052618,1745676646593,-693.96,0.00019978,2]
[359052619,1745676646605,-400.0,0.00019978,2]
[359052620,1745676646616,-513.6,0.00019978,2]
[359052621,1745676646626,-400.0,0.00019978,2]
[359052622,1745676646635,-884.86,0.00019978,2]
[359052623,1745676646645,-569.65,0.00019978,2]
[359052624,1745676646655,-400.0,0.00019978,2]
[359052625,1745676646664,-400.0,0.00019978,2]
[359052626,1745676646674,-500.0,0.00019978,2]
[359052627,1745676646684,-406.74,0.00019978,2]
[359052628,1745676646693,-400.0,0.00019978,2]
[359052629,1745676646704,-400.0,0.00019978,2]
[359052630,1745676646714,-400.0,0.00019978,2]
[359052631,1745676646726,-809.44,0.00019978,2]
[359052632,1745676646736,-400.0,0.00019978,2]
[359052633,1745676646746,-300.0,0.00019978,2]
[359052634,1745676646755,-484.77,0.00019978,2]
[359052635,1745676646765,-658.81,0.00019978,2]
[359052636,1745676646774,-890.88,0.00019978,2]
[359052637,1745676646784,-400.0,0.00019978,2]
[359052638,1745676646794,-405.55,0.00019978,2]
[359052639,1745676646803,-405.57,0.00019978,2]
[359052640,1745676646813,-400.0,0.00019978,2]
[359052641,1745676646823,-436.95,0.00019978,2]
[359052642,1745676646834,-400.0,0.00019978,2]
[359052643,1745676646849,-408.08,0.00019978,2]
[359052644,1745676646861,-400.0,0.00019978,2]
[359052645,1745676646872,-400.0,0.00019978,2]
[359052646,1745676646883,-672.89,0.00019978,2]
[359052647,1745676646892,-442.55224143,0.00019978,2]
[359052648,1745676646908,-400.0,0.00019978,2]
[359052649,1745676646921,-400.0,0.00019978,2]
[359052650,1745676646933,-432.89,0.00019978,2]
[359052651,1745676646943,-465.04,0.00019978,2]
[359052652,1745676646956,-400.0,0.00019978,2]
[359052653,1745676646965,-1037.66,0.00019978,2]
[359052654,1745676646975,-300.0,0.00019978,2]
[359052655,1745676646985,-400.0,0.00019978,2]
[359052656,1745676646995,-400.0,0.00019978,2]
[359052657,1745676647005,-521.42,0.00019978,2]
[359052658,1745676647015,-300.0,0.00019978,2]
[359052659,1745676647026,-591.85,0.00019978,2]
[359052660,1745676647036,-621.29,0.00019978,2]
[359052661,1745676647045,-400.0,0.00019978,2]
[359052662,1745676647055,-400.0,0.00019978,2]
[359052663,1745676647065,-400.0,0.00019978,2]
[359052664,1745676647075,-685.73,0.00019978,2]
[359052665,1745676647085,-400.0,0.00019978,2]
[359052666,1745676647095,-400.0,0.00019978,2]
[359052667,1745676647108,-400.0,0.00019978,2]
[359052668,1745676647117,-400.0,0.00019978,2]
[359052669,1745676647128,-400.0,0.00019978,2]
[359052670,1745676647138,-400.0,0.00019978,2]
[359052671,1745676647148,-1730.27,0.00019978,2]
[359052672,1745676647158,-715.1,0.00019978,2]
[359052673,1745676647167,-400.0,0.00019978,2]
[359052674,1745676647177,-400.0,0.00019978,2]
[359052675,1745676647187,-400.0,0.00019978,2]
[359052676,1745676647197,-1619.87,0.00019978,2]
[359052677,1745676647207,-400.0,0.00019978,2]
[359052678,1745676647217,-400.0,0.00019978,2]
[359052679,1745676647227,-400.08,0.00019978,2]
[359052680,1745676647237,-400.0,0.00019978,2]
[359052681,1745676647246,-400.0,0.00019978,2]
[359052682,1745676647256,-400.0,0.00019978,2]
[359052683,1745676647266,-608.26,0.00019978,2]
[359052684,1745676647276,-781.87,0.00019978,2]
[359052685,1745676647287,-400.0,0.00019978,2]
[359052686,1745676647296,-400.0,0.00019978,2]
[359052687,1745676647306,-400.0,0.00019978,2]
[359052688,1745676647316,-1854.82,0.00019978,2]
[359052689,1745676647326,-400.0,0.00019978,2]
[359052690,1745676647336,-400.0,0.00019978,2]
[359052691,1745676647345,-428.15,0.00019978,2]
[359052692,1745676647357,-932.06,0.00019978,2]
[359052693,1745676647372,-400.0,0.00019978,2]
[359052694,1745676647382,-400.0,0.00019978,2]
[359052695,1745676647392,-400.0,0.00019978,2]
[359052696,1745676647403,-684.27,0.00019978,2]
[359052697,1745676647415,-400.0,0.00019978,2]
[359052698,1745676647426,-531.91,0.00019978,2]
[359052699,1745676647438,-400.0,0.00019978,2]
[359052700,1745676647451,-400.0,0.00019978,2]
[359052701,1745676647462,-400.0,0.00019978,2]
[359052702,1745676647472,-400.0,0.00019978,2]
[359052703,1745676647481,-400.0,0.00019978,2]
[359052704,1745676647491,-840.0,0.00019978,2]
[359052705,1745676647502,-400.0,0.00019978,2]
[359052706,1745676647513,-400.0,0.00019978,2]
[359052707,1745676647523,-632.98,0.00019978,2]
[359052708,1745676647535,-220.92064094,0.00019978,2]
[359052709,1745676647544,-400.0,0.00019978,2]
[359052710,1745676647553,-745.25,0.00019978,2]
[359052711,1745676647564,-601.83,0.00019978,2]
[359052712,1745676647573,-629.26,0.00019978,2]
[359052713,1745676647583,-629.26,0.00019978,2]
[359052714,1745676647593,-400.0,0.00019978,2]
[359052715,1745676647603,-400.0,0.00019978,2]
[359052716,1745676647613,-404.18,0.00019978,2]
[359052717,1745676647622,-400.0,0.00019978,2]
[359052718,1745676647632,-682.82,0.00019978,2]
[359052719,1745676647642,-400.0,0.00019978,2]
[359052720,1745676647651,-462.15,0.00019978,2]
[359052721,1745676647661,-400.0,0.00019978,2]
[359052722,1745676647670,-400.0,0.00019978,2]
[359052723,1745676647680,-400.0,0.00019978,2]
[359052724,1745676647689,-275.02640054,0.00019978,2]
[359052725,1745676647699,-400.0,0.00019978,2]
[359052726,1745676647709,-400.0,0.00019978,2]
[359052727,1745676647719,-662.16,0.00019978,2]
[359052728,1745676647728,-482.64,0.00019978,2]
[359052729,1745676647738,-556.49,0.00019978,2]
[359052730,1745676647749,-400.0,0.00019978,2]
[359052731,1745676647760,-4010.85,0.00019978,2]
[359052732,1745676647769,-400.0,0.00019978,2]
[359052733,1745676647779,-817.11,0.00019978,2]
[359052734,1745676647789,-400.0,0.00019978,2]
[359052735,1745676647807,-400.0,0.00019978,2]
[359052736,1745676647821,-400.0,0.00019978,2]
[359052737,1745676647831,-670.48,0.00019978,2]
[359052738,1745676647842,-400.0,0.00019978,2]
[359052739,1745676647858,-473.22,0.00019978,2]
[359052740,1745676647868,-400.0,0.00019978,2]
[359052741,1745676647877,-400.0,0.00019978,2]
[359052742,1745676647887,-400.0,0.00019978,2]
[359052743,1745676647898,-803.9,0.00019978,2]
[359052744,1745676647908,-400.0,0.00019978,2]
[359052745,1745676647920,-400.0,0.00019978,2]
[359052746,1745676647930,-643.1,0.00019978,2]
[359052747,1745676647941,-400.0,0.00019978,2]
[359052748,1745676647952,-400.0,0.00019978,2]
[359052749,1745676647962,-400.0,0.00019978,2]
[359052750,1745676647974,-200.0,0.00019978,2]
[359052751,1745676647986,-400.0,0.00019978,2]
[359052752,1745676647997,-400.0,0.00019978,2]
[359052753,1745676648007,-400.0,0.00019978,2]
[359052754,1745676648018,-500.0,0.00019978,2]
[359052755,1745676648028,-400.0,0.00019978,2]
[359052756,1745676648039,-400.0,0.00019978,2]
[359052757,1745676648427,-714.12,0.00019978,2]
[359052758,1745676648439,-400.0,0.00019978,2]
[359052759,1745676648450,-400.0,0.00019978,2]
[359052760,1745676648460,-808.25,0.00019978,2]